Workbook

Sheet Painel
C3: Simulador de Faturas (Tarifas vigentes a partir de 29/10/2023)
B5: 1 - Digite o volume total consumido (m³)
B7: 2 - Clique no serviço oferecido
B10: 3 - Digite o número de economias* | E10: Categorias | G10: Número de economias | H10: Valor Água | J10: Valor Esgoto | L10: Valor Total
B11: relativas a cada categoria | E11: ResidencialSocial | H11: =IF(G11>0,Painel!D33*G11,Painel!D33) -> 0 | J11: =IF(G11>0,Painel!E33*G11,Painel!E33) -> 0 | L11: =H11+J11 -> 0
E12: Residencial | H12: =IF(G12>0,Painel!D34*G12,Painel!D34) -> 0 | J12: =IF(G12>0,Painel!E34*G12,Painel!E34) -> 0 | L12: =H12+J12 -> 0
E13: Comercial | H13: =IF(G13>0,Painel!D35*G13,Painel!D35) -> 0 | J13: =IF(G13>0,Painel!E35*G13,Painel!E35) -> 0 | L13: 0
E14: Industrial | H14: =IF(G14>0,Painel!D36*G14,Painel!D36) -> 0 | J14: =IF(G14>0,Painel!E36*G14,Painel!E36) -> 0 | L14: 0
E15: Pública | H15: =IF(G15>0,Painel!D37*G15,Painel!D37) -> 0 | J15: =IF(G15>0,Painel!E37*G15,Painel!E37) -> 0 | L15: 0
E16: Valor Total | G16: =SUM(G11:G15) -> 0 | H16: 0 | I16: 0 | J16: 0 | K16: 0 | L16: 0 | M16: 0
C18: * Economia faz referência ao número de unidades familiares, comerciais ou produtivas que existem para um mesmo hidrômetro/ligação. Existindo em um mesma construção, com hidrômetro único, três famílias e duas lojas, têm-se 3 economias residenciais e 2 economias comerciais para 1 ligação
C24: Agência Reguladora de Serviços de Abastecimento de Água e Esgotamento Sanitário do Estado de MG - ARSAE
B28: Serviços | C28: Volume/Economias
B29: Só Água | C29: =IFERROR(Painel!E5/Painel!G16,0) -> 0
D31: Sem multiplicar pelas economias
B32: Categoria | C32: N° economias | D32: Valor Água | E32: Valor Esgoto
B33: =Painel!E11 -> ResidencialSocial | C33: =Painel!G11 -> 0 | D33: =IF(C33>0,IF(OR($B$29="Só Água",$B$29="Água e Esgoto"),IF($C$29<=Painel!$M$45,Painel!$K$44,IF(AND($C$29>Painel!$C$44,$C$29<=Painel!$C$49),INDEX(Painel!$C$45:$K$49,MATCH(ROUNDUP($C$29,0),Painel!$C$45:$C$49,0),9),IF(AND($C$29>Painel!$M$50,$C$29<=Painel!$N$50),Painel!K50,IF(AND($C$29>Painel!$M$51,$C$29<=Painel!$N$51),Painel!$K$51,IF(AND($C$29>Painel!$M$52,$C$29<=Painel!$N$52),Painel!$K$52,IF($C$29>Painel!$M$53,Painel!$K$53,"Erro")))))),0),0) -> 0 | E33: =IF(C33>0,IF(OR($B$29="Esgoto",$B$29="Água e Esgoto"),IF($C$29<=Painel!$C$44,Painel!$L$44,IF(AND($C$29>Painel!$C$44,$C$29<Painel!$B$50),INDEX(Painel!$C$45:$L$49,MATCH(ROUNDUP($C$29,0),Painel!$C$45:$C$49,0),10),IF(AND($C$29>Painel!C49,$C$29<Painel!B51),Painel!$L$50,IF(AND($C$29>Painel!$C$50,$C$29<Painel!$B$52),Painel!$L$51,IF(AND($C$29>Painel!$C$51,$C$29<Painel!$B$53),Painel!$L$52,IF($C$29>Painel!$C$52,Painel!$L$53,"Erro")))))),0),0) -> 0
B34: =Painel!E12 -> Residencial | C34: =Painel!G12 -> 0 | D34: =IF(C34>0,IF(OR($B$29="Só Água",$B$29="Água e Esgoto"),IF($C$29<=Painel!$C$56,Painel!K56,IF(AND($C$29>Painel!$M$58,$C$29<=Painel!$N$58),Painel!K58,IF(AND($C$29>Painel!$M$59,$C$29<=Painel!$N$59),Painel!K59,IF(AND($C$29>Painel!$M$60,$C$29<=Painel!$N$60),Painel!K60,IF(AND($C$29>Painel!$M$61,$C$29<Painel!$N$61),Painel!K61,IF($C$29>Painel!$M$62,Painel!K62,"Erro")))))),0),0) -> 0 | E34: =IF(C34>0,IF(OR($B$29="Esgoto",$B$29="Água e Esgoto"),IF($C$29<=Painel!$C$56,Painel!L56,IF(AND($C$29>Painel!$M$58,$C$29<=Painel!$N$58),Painel!L58,IF(AND($C$29>Painel!$M$59,$C$29<=Painel!$N$59),Painel!L59,IF(AND($C$29>Painel!$M$60,$C$29<=Painel!$N$60),Painel!L60,IF(AND($C$29>Painel!$M$61,$C$29<Painel!$N$61),Painel!L61,IF($C$29>Painel!$M$62,Painel!L62,"Erro")))))),0),0) -> 0
B35: =Painel!E13 -> Comercial | C35: =Painel!G13 -> 0 | D35: =IF(C35>0,IF(OR($B$29="Só Água",$B$29="Água e Esgoto"),IF($C$29<=Painel!$C$65,Painel!F65,IF(AND($C$29>Painel!$M$67,$C$29<=Painel!$N$67),Painel!K67,IF($C$29>Painel!$M$68,Painel!K68,"Erro"))),0),0) -> 0 | E35: =IF(C35>0,IF(OR($B$29="Esgoto",$B$29="Água e Esgoto"),IF($C$29<=Painel!$C$65,Painel!G65,IF(AND($C$29>Painel!$M$67,$C$29<=Painel!$N$67),Painel!L67,IF($C$29>Painel!$M$68,Painel!L68,"Erro"))),0),0) -> 0
B36: =Painel!E14 -> Industrial | C36: =Painel!G14 -> 0 | D36: =IF(C36>0,IF(OR($B$29="Só Água",$B$29="Água e Esgoto"),IF($C$29<=Painel!$C$71,Painel!F71,IF(AND($C$29>Painel!$M$73,$C$29<=Painel!$N$73),Painel!K73,IF(AND($C$29>Painel!$M$74,$C$29<=Painel!$N$74),Painel!K74,IF($C$29>Painel!$M$75,Painel!K75,"Erro")))),0),0) -> 0 | E36: =IF(C36>0,IF(OR($B$29="Esgoto",$B$29="Água e Esgoto"),IF($C$29<=Painel!$C$71,Painel!G71,IF(AND($C$29>Painel!$M$73,$C$29<=Painel!$N$73),Painel!L73,IF(AND($C$29>Painel!$M$74,$C$29<=Painel!$N$74),Painel!L74,IF($C$29>Painel!$M$75,Painel!L75,"Erro")))),0),0) -> 0
B37: =Painel!E15 -> Pública | C37: =Painel!G15 -> 0 | D37: =IF(C37>0,IF(OR($B$29="Só Água",$B$29="Água e Esgoto"),IF($C$29<=Painel!$C$78,Painel!F78,IF(AND($C$29>Painel!$M$80,$C$29<=Painel!$N$80),Painel!K80,IF($C$29>Painel!$M$81,Painel!K81,"Erro"))),0),0) -> 0 | E37: =IF(C37>0,IF(OR($B$29="Esgoto",$B$29="Água e Esgoto"),IF($C$29<=Painel!$C$78,Painel!G78,IF(AND($C$29>Painel!$M$80,$C$29<=Painel!$N$80),Painel!L80,IF($C$29>Painel!$M$81,Painel!L81,"Erro"))),0),0) -> 0
D39: 3: Aplicação | F39: Teto Por Faixa | I39: Acumulado | K39: Cálculos
A40: Tipo | B40: Consumo m³ | E40: Valor m³ | F40: Água | G40: Esgoto | H40: Total | I40: Água | J40: Esgoto | K40: Água | L40: Esgoto | M40: Referência Min. | N40: Referência Max.
D41: CATEGORIA RESIDENCIAL - R2 | M41: - | N41: -
C42: 10 | D42: SERVIÇO ESTIMADO | E42: 1.833915694 | F42: 18.34 | G42: 9.18 | H42: 27.52 | M42: - | N42: -
C43: 10 | D43: CONSUMO MÍNIMO 10m³ | E43: 1.839009178 | F43: 18.39 | G43: 9.2 | H43: 27.59 | M43: - | N43: -
A44: Residencial Social | B44: 1 | C44: 10 | D44: CONSUMO EXCEDENTE AO MÍNIMO | E44: 1.839009178 | F44: 18.39 | G44: 9.2 | H44: 27.59 | I44: =F44 -> 18.39 | J44: =G44 -> 9.2 | K44: =E44*C44 -> 18.39009178 | L44: =IFERROR(K44/2,"Fora da faixa") -> 9.195045892 | M44: - | N44: -
A45: Residencial Social | B45: - | C45: 11 | E45: 5.536617861 | F45: 5.54 | G45: 2.77 | H45: 8.3 | I45: =F45+I44 -> 23.93 | J45: =G45+J44 -> 11.97 | K45: =IF(Painel!$C$29=N45,E45+I44,IF(AND(Painel!$C$29>M45,Painel!$C$29<N45),I44+((Painel!$C$29-M45)*E45),"Fora da faixa")) -> Fora da faixa | L45: =IFERROR(K45/2,"Fora da faixa") -> Fora da faixa | M45: 10 | N45: 11
A46: Residencial Social | B46: - | C46: 12 | E46: 6.29855093 | F46: 6.3 | G46: 3.15 | H46: 9.45 | I46: =F46+I45 -> 30.23 | J46: =G46+J45 -> 15.12 | K46: =IF(Painel!$C$29=N46,E46+I45,IF(AND(Painel!$C$29>M46,Painel!$C$29<N46),I45+((Painel!$C$29-M46)*E46),"Fora da faixa")) -> Fora da faixa | L46: =IFERROR(K46/2,"Fora da faixa") -> Fora da faixa | M46: 11 | N46: 12
A47: Residencial Social | B47: - | C47: 13 | E47: 4.520663568 | F47: 4.53 | G47: 2.27 | H47: 6.8 | I47: =F47+I46 -> 34.76 | J47: =G47+J46 -> 17.39 | K47: =IF(Painel!$C$29=N47,E47+I46,IF(AND(Painel!$C$29>M47,Painel!$C$29<N47),I46+((Painel!$C$29-M47)*E47),"Fora da faixa")) -> Fora da faixa | L47: =IFERROR(K47/2,"Fora da faixa") -> Fora da faixa | M47: 12 | N47: 13
A48: Residencial Social | B48: - | C48: 14 | E48: 4.825750241 | F48: 4.82 | G48: 2.42 | H48: 7.24 | I48: =F48+I47 -> 39.58 | J48: =G48+J47 -> 19.81 | K48: =IF(Painel!$C$29=N48,E48+I47,IF(AND(Painel!$C$29>M48,Painel!$C$29<N48),I47+((Painel!$C$29-M48)*E48),"Fora da faixa")) -> Fora da faixa | L48: =IFERROR(K48/2,"Fora da faixa") -> Fora da faixa | M48: 13 | N48: 14
A49: Residencial Social | B49: - | C49: 15 | E49: 5.587944514 | F49: 5.59 | G49: 2.8 | H49: 8.39 | I49: =F49+I48 -> 45.17 | J49: =G49+J48 -> 22.61 | K49: =IF(Painel!$C$29=N49,E49+I48,IF(AND(Painel!$C$29>M49,Painel!$C$29<N49),I48+((Painel!$C$29-M49)*E49),"Fora da faixa")) -> Fora da faixa | L49: =IFERROR(K49/2,"Fora da faixa") -> Fora da faixa | M49: 14 | N49: 15
A50: Residencial Social | B50: 16 | C50: 25 | E50: 5.535442441 | F50: 55.36 | G50: 27.68 | H50: 83.04 | I50: =F50+I49 -> 100.53 | J50: =G50+J49 -> 50.29 | K50: =IF(AND(Painel!$C$29>M50,Painel!$C$29<=N50),I49+((Painel!$C$29-M50)*E50),"Fora da faixa") -> Fora da faixa | L50: =IFERROR(K50/2,"Fora da faixa") -> Fora da faixa | M50: =C49 -> 15 | N50: =C50 -> 25
A51: Residencial Social | B51: 26 | C51: 40 | E51: 7.061006408 | F51: 105.92 | G51: 52.97 | H51: 158.89 | I51: =F51+I50 -> 206.45 | J51: =G51+J50 -> 103.26 | K51: =IF(AND(Painel!$C$29>M51,Painel!$C$29<=N51),I50+((Painel!$C$29-M51)*E51),"Fora da faixa") -> Fora da faixa | L51: =IFERROR(K51/2,"Fora da faixa") -> Fora da faixa | M51: =C50 -> 25 | N51: =C51 -> 40
A52: Residencial Social | B52: 41 | C52: 100 | E52: 11.29160255 | F52: 677.49 | G52: 338.75 | H52: 1016.24 | I52: =F52+I51 -> 883.94 | J52: =G52+J51 -> 442.01 | K52: =IF(AND(Painel!$C$29>M52,Painel!$C$29<=N52),I51+((Painel!$C$29-M52)*E52),"Fora da faixa") -> Fora da faixa | L52: =IFERROR(K52/2,"Fora da faixa") -> Fora da faixa | M52: =C51 -> 40 | N52: =C52 -> 100
A53: Residencial Social | B53: 101 | C53: 9999 | E53: 15.71705714 | F53: 155583.14 | G53: 77791.58 | H53: 233374.72 | K53: =IF(Painel!$C$29>M53,I52+((Painel!$C$29-M53)*E53),"Fora da faixa") -> Fora da faixa | L53: =IFERROR(K53/2,"Fora da faixa") -> Fora da faixa | M53: =C52 -> 100
D54: CATEGORIA RESIDENCIAL - R2 | M54: - | N54: -
C55: 20 | D55: SERVIÇO ESTIMADO | E55: 1.875055378 | F55: 37.5 | G55: 18.75 | H55: 56.26 | M55: - | N55: -
A56: Residencial | C56: 10 | D56: CONSUMO MÍNIMO 10m³ | E56: 3.851719245 | F56: 38.51 | G56: 19.26 | H56: 57.78 | K56: =$C$56*$E$56 -> 38.51719245 | L56: =IFERROR(K56/2,"Fora da faixa") -> 19.25859622 | M56: - | N56: -
A57: Residencial | B57: 1 | C57: 10 | D57: CONSUMO EXCEDENTE AO MÍNIMO | E57: 4.285710261 | F57: 42.86 | G57: 21.43 | H57: 64.29 | I57: =F57 -> 42.86 | J57: =G57 -> 21.43 | K57: =$C$57*$E$57 -> 42.85710261 | L57: =IFERROR(K57/2,"Fora da faixa") -> 21.42855131 | M57: - | N57: -
A58: Residencial | B58: 11 | C58: 15 | E58: 4.995271859 | F58: 24.98 | G58: 12.49 | H58: 37.47 | I58: =I57+F58 -> 67.84 | J58: =G58+J57 -> 33.92 | K58: =IF(AND(Painel!$C$29>M58,Painel!$C$29<=N58),I57+((Painel!$C$29-M58)*E58),"Fora da faixa") -> Fora da faixa | L58: =IFERROR(K58/2,"Fora da faixa") -> Fora da faixa | M58: =C57 -> 10 | N58: =C58 -> 15
A59: Residencial | B59: 16 | C59: 25 | E59: 5.535442441 | F59: 55.36 | G59: 27.68 | H59: 83.04 | I59: =I58+F59 -> 123.2 | J59: =G59+J58 -> 61.6 | K59: =IF(AND(Painel!$C$29>M59,Painel!$C$29<=N59),I58+((Painel!$C$29-M59)*E59),"Fora da faixa") -> Fora da faixa | L59: =IFERROR(K59/2,"Fora da faixa") -> Fora da faixa | M59: =C58 -> 15 | N59: =C59 -> 25
A60: Residencial | B60: 26 | C60: 40 | E60: 7.061006408 | F60: 105.92 | G60: 52.97 | H60: 158.89 | I60: =I59+F60 -> 229.12 | J60: =G60+J59 -> 114.57 | K60: =IF(AND(Painel!$C$29>M60,Painel!$C$29<=N60),I59+((Painel!$C$29-M60)*E60),"Fora da faixa") -> Fora da faixa | L60: =IFERROR(K60/2,"Fora da faixa") -> Fora da faixa | M60: =C59 -> 25 | N60: =C60 -> 40
A61: Residencial | B61: 41 | C61: 100 | E61: 11.29160255 | F61: 677.49 | G61: 338.75 | H61: 1016.24 | I61: =I60+F61 -> 906.61 | J61: =G61+J60 -> 453.32 | K61: =IF(AND(Painel!$C$29>M61,Painel!$C$29<=N61),I60+((Painel!$C$29-M61)*E61),"Fora da faixa") -> Fora da faixa | L61: =IFERROR(K61/2,"Fora da faixa") -> Fora da faixa | M61: =C60 -> 40 | N61: =C61 -> 100
A62: Residencial | B62: 101 | C62: 9999 | E62: 15.71705714 | F62: 155583.14 | G62: 77791.58 | H62: 233374.72 | K62: =IF(Painel!$C$29>M62,I61+((Painel!$C$29-M62)*E62),"Fora da faixa") -> Fora da faixa | L62: =IFERROR(K62/2,"Fora da faixa") -> Fora da faixa | M62: =C61 -> 100
D63: CATEGORIA COMERCIAL - C | M63: - | N63: -
C64: 20 | D64: SERVIÇO ESTIMADO | E64: 1.875055378 | F64: 37.5 | G64: 18.75 | H64: 56.26 | M64: - | N64: -
C65: 10 | D65: CONSUMO MÍNIMO 10m³ | E65: 5.835958038 | F65: 58.35 | G65: 29.18 | H65: 87.53 | M65: - | N65: -
A66: Comercial | B66: 1 | C66: 10 | D66: CONSUMO EXCEDENTE AO MÍNIMO | E66: 5.835958038 | F66: 58.35 | G66: 29.18 | H66: 87.53 | I66: =F66 -> 58.35 | J66: =G66 -> 29.18 | K66: =$C$66*$E$66 -> 58.35958038 | L66: =IFERROR(K66/2,"Fora da faixa") -> 29.17979019 | M66: - | N66: -
A67: Comercial | B67: 11 | C67: 30 | E67: 7.802304334 | F67: 156.05 | G67: 78.03 | H67: 234.08 | I67: =I66+F67 -> 214.4 | J67: =G67+J66 -> 107.21 | K67: =IF(AND(Painel!$C$29>M67,Painel!$C$29<=N67),I66+((Painel!$C$29-M67)*E67),"Fora da faixa") -> Fora da faixa | L67: =IFERROR(K67/2,"Fora da faixa") -> Fora da faixa | M67: =C66 -> 10 | N67: =C67 -> 30
A68: Comercial | B68: 31 | C68: 9999 | E68: 8.677469486 | F68: 86505.7 | G68: 43252.85 | H68: 129758.54 | K68: =IF(Painel!$C$29>M68,I67+((Painel!$C$29-M68)*E68),"Fora da faixa") -> Fora da faixa | L68: =IFERROR(K68/2,"Fora da faixa") -> Fora da faixa | M68: =C67 -> 30
D69: CATEGORIA INDUSTRIAL - I | M69: - | N69: -
C70: 20 | D70: SERVIÇO ESTIMADO | E70: 3.250688051 | F70: 65.01 | G70: 32.51 | H70: 97.53 | M70: - | N70: -
C71: 10 | D71: CONSUMO MÍNIMO 10m³ | E71: 6.502290318 | F71: 65.02 | G71: 32.51 | H71: 97.54 | M71: - | N71: -
B72: 1 | C72: 10 | D72: CONSUMO EXCEDENTE AO MÍNIMO | E72: 6.502290318 | F72: 65.02 | G72: 32.51 | H72: 97.54 | I72: =F72 -> 65.02 | J72: =G72 -> 32.51 | K72: =C72*E72 -> 65.02290318 | L72: =IFERROR(K72/2,"Fora da faixa") -> 32.51145159 | M72: - | N72: -
A73: Industrial | B73: 11 | C73: 30 | E73: 7.802304334 | F73: 156.05 | G73: 78.03 | H73: 234.08 | I73: =I72+F73 -> 221.07 | J73: =G73+J72 -> 110.54 | K73: =IF(AND(Painel!$C$29>M73,Painel!$C$29<=N73),I72+((Painel!$C$29-M73)*E73),"Fora da faixa") -> Fora da faixa | L73: =IFERROR(K73/2,"Fora da faixa") -> Fora da faixa | M73: =C72 -> 10 | N73: =C73 -> 30
A74: Industrial | B74: 31 | C74: 60 | E74: 8.677469486 | F74: 260.33 | G74: 130.16 | H74: 390.49 | I74: =I73+F74 -> 481.4 | J74: =G74+J73 -> 240.7 | K74: =IF(AND(Painel!$C$29>M74,Painel!$C$29<=N74),I73+((Painel!$C$29-M74)*E74),"Fora da faixa") -> Fora da faixa | L74: =IFERROR(K74/2,"Fora da faixa") -> Fora da faixa | M74: =C73 -> 30 | N74: =C74 -> 60
A75: Industrial | B75: 61 | C75: 9999 | E75: 10.75743967 | F75: 106918.19 | G75: 53459.09 | H75: 160377.28 | K75: =IF(Painel!$C$29>M75,I74+((Painel!$C$29-M75)*E75),"Fora da faixa") -> Fora da faixa | L75: =IFERROR(K75/2,"Fora da faixa") -> Fora da faixa | M75: =C74 -> 60
D76: CATEGORIA PÚBLICA - P | M76: - | N76: -
C77: 20 | D77: SERVIÇO ESTIMADO | E77: 4.363679758 | F77: 87.27 | G77: 43.64 | H77: 130.91 | M77: - | N77: -
C78: 15 | D78: CONSUMO MÍNIMO 15m³ | E78: 5.824334445 | F78: 87.36 | G78: 43.69 | H78: 131.05 | M78: - | N78: -
A79: Pública | B79: 1 | C79: 15 | D79: CONSUMO EXCEDENTE AO MÍNIMO | E79: 5.824334445 | F79: 87.36 | G79: 43.69 | H79: 131.05 | I79: =F79 -> 87.36 | J79: =G79 -> 43.69 | K79: =$C$79*$E$79 -> 87.36501667 | L79: =IFERROR(K79/2,"Fora da faixa") -> 43.68250834 | M79: - | N79: -
A80: Pública | B80: 16 | C80: 30 | E80: 9.053081331 | F80: 135.8 | G80: 67.91 | H80: 203.71 | I80: =I79+F80 -> 223.16 | J80: =G80+J79 -> 111.6 | K80: =IF(AND(Painel!$C$29>M80,Painel!$C$29<=N80),I79+((Painel!$C$29-M80)*E80),"Fora da faixa") -> Fora da faixa | L80: =IFERROR(K80/2,"Fora da faixa") -> Fora da faixa | M80: =C79 -> 15 | N80: =C80 -> 30
A81: Pública | B81: 31 | C81: 9999 | E81: 9.345499593 | F81: 93165.29 | G81: 46582.65 | H81: 139747.93 | K81: =IF(Painel!$C$29>M81,I80+((Painel!$C$29-M81)*E81),"Fora da faixa") -> Fora da faixa | L81: =IFERROR(K81/2,"Fora da faixa") -> Fora da faixa | M81: =C80 -> 30

Sheet Tutorial
L5: Exemplo de uso do simulador

Sheet Tabela de Tarifas
B2: Vigência a partir de 29 de Outubro de 2023
B3: Tipo | C3: Faixa de consumo m³ | F3: Teto Por Faixa
F4: Valor m³ | G4: Água | H4: Esgoto | I4: Total
B5: Residencial Social | C5: CATEGORIA RESIDENCIAL - R2
D6: 10 | E6: SERVIÇO ESTIMADO | F6: 1.833915694 | G6: 18.34 | H6: 9.18 | I6: 27.52
D7: 10 | E7: CONSUMO MÍNIMO 10m³ | F7: 1.839009178 | G7: 18.39 | H7: 9.2 | I7: 27.59
C8: 1 | D8: 10 | E8: CONSUMO EXCEDENTE AO MÍNIMO | F8: 1.839009178 | G8: 18.39 | H8: 9.2 | I8: 27.59
C9: - | D9: 11 | F9: 5.536617861 | G9: 5.54 | H9: 2.77 | I9: 8.3
C10: - | D10: 12 | F10: 6.29855093 | G10: 6.3 | H10: 3.15 | I10: 9.45
C11: - | D11: 13 | F11: 4.520663568 | G11: 4.53 | H11: 2.27 | I11: 6.8
C12: - | D12: 14 | F12: 4.825750241 | G12: 4.82 | H12: 2.42 | I12: 7.24
C13: - | D13: 15 | F13: 5.587944514 | G13: 5.59 | H13: 2.8 | I13: 8.39
C14: 16 | D14: 25 | F14: 5.535442441 | G14: 55.36 | H14: 27.68 | I14: 83.04
C15: 26 | D15: 40 | F15: 7.061006408 | G15: 105.92 | H15: 52.97 | I15: 158.89
C16: 41 | D16: 100 | F16: 11.29160255 | G16: 677.49 | H16: 338.75 | I16: 1016.24
C17: 101 | D17: - | F17: 15.71705714 | G17: 155583.14 | H17: 77791.58 | I17: 233374.72
B18: Residencial | C18: CATEGORIA RESIDENCIAL - R2
D19: 20 | E19: SERVIÇO ESTIMADO | F19: 1.875055378 | G19: 37.5 | H19: 18.75 | I19: 56.26
D20: 10 | E20: CONSUMO MÍNIMO 10m³ | F20: 3.851719245 | G20: 38.51 | H20: 19.26 | I20: 57.78
C21: 1 | D21: 10 | E21: CONSUMO EXCEDENTE AO MÍNIMO | F21: 4.285710261 | G21: 42.86 | H21: 21.43 | I21: 64.29
C22: 11 | D22: 15 | F22: 4.995271859 | G22: 24.98 | H22: 12.49 | I22: 37.47
C23: 16 | D23: 25 | F23: 5.535442441 | G23: 55.36 | H23: 27.68 | I23: 83.04
C24: 26 | D24: 40 | F24: 7.061006408 | G24: 105.92 | H24: 52.97 | I24: 158.89
C25: 41 | D25: 100 | F25: 11.29160255 | G25: 677.49 | H25: 338.75 | I25: 1016.24
C26: 101 | D26: - | F26: 15.71705714 | G26: 155583.14 | H26: 77791.58 | I26: 233374.72
B27: Comercial | C27: CATEGORIA COMERCIAL - C
D28: 20 | E28: SERVIÇO ESTIMADO | F28: 1.875055378 | G28: 37.5 | H28: 18.75 | I28: 56.26
D29: 10 | E29: CONSUMO MÍNIMO 10m³ | F29: 5.835958038 | G29: 58.35 | H29: 29.18 | I29: 87.53
C30: 1 | D30: 10 | E30: CONSUMO EXCEDENTE AO MÍNIMO | F30: 5.835958038 | G30: 58.35 | H30: 29.18 | I30: 87.53
C31: 11 | D31: 30 | F31: 7.802304334 | G31: 156.05 | H31: 78.03 | I31: 234.08
C32: 31 | D32: - | F32: 8.677469486 | G32: 86505.7 | H32: 43252.85 | I32: 129758.54
B33: Industrial | C33: CATEGORIA INDUSTRIAL - I
D34: 20 | E34: SERVIÇO ESTIMADO | F34: 3.250688051 | G34: 65.01 | H34: 32.51 | I34: 97.53
D35: 10 | E35: CONSUMO MÍNIMO 10m³ | F35: 6.502290318 | G35: 65.02 | H35: 32.51 | I35: 97.54
C36: 1 | D36: 10 | E36: CONSUMO EXCEDENTE AO MÍNIMO | F36: 6.502290318 | G36: 65.02 | H36: 32.51 | I36: 97.54
C37: 11 | D37: 30 | F37: 7.802304334 | G37: 156.05 | H37: 78.03 | I37: 234.08
C38: 31 | D38: 60 | F38: 8.677469486 | G38: 260.33 | H38: 130.16 | I38: 390.49
C39: 61 | D39: - | F39: 10.75743967 | G39: 106918.19 | H39: 53459.09 | I39: 160377.28
B40: Pública | C40: CATEGORIA PÚBLICA - P
D41: 20 | E41: SERVIÇO ESTIMADO | F41: 4.363679758 | G41: 87.27 | H41: 43.64 | I41: 130.91
D42: 15 | E42: CONSUMO MÍNIMO 15m³ | F42: 5.824334445 | G42: 87.36 | H42: 43.69 | I42: 131.05
C43: 1 | D43: 15 | E43: CONSUMO EXCEDENTE AO MÍNIMO | F43: 5.824334445 | G43: 87.36 | H43: 43.69 | I43: 131.05
C44: 16 | D44: 30 | F44: 9.053081331 | G44: 135.8 | H44: 67.91 | I44: 203.71
C45: 31 | D45: - | F45: 9.345499593 | G45: 93165.29 | H45: 46582.65 | I45: 139747.93
